Cogmind - Beta 13 @@@ ROGUE MODE // 2024.04.20 @ 13:53:06 Player: Razor Feather Result: Destroyed by Autobeam Turret with Autobeam Performance ------------- Evolutions (0) 0 Regions Visited (2) 400 Robots Destroyed (19) 95 Value Destroyed (290) 290 Prototype IDs (3) 60 Alien Tech Used (0) 0 Bonus (0) 0 TOTAL SCORE: 845 Bonus ------- None Cogmind --------- Core Integrity 0/250 Matter 275/300 Energy 97/125 System Corruption 1% Temperature Cool (20) Movement Treading (480) Ox4 Location -10/Subcaves Parts ------- > --- POWER (1) -------- Light Ion Engine > --- PROPULSION (2) --- Light Treads > --- UTILITY (2) ------ Huge Storage Unit Improved Terrain Scanner > --- WEAPON (2) ------- Medium Laser Subdweller Laser > --- INVENTORY (25) --- Ion Engine Light Ion Engine Heat Sink Large Storage Unit Large Storage Unit Medium Matter Pod (100) High-capacity Matter Pod (39) Visual Processing Unit Transport Network Coupler Targeting Computer Propulsion Shielding EM Pulse Gun Light Assault Rifle Peak State ------------ > --- POWER ------------ Ion Engine > --- PROPULSION ------- Compact Wheel Compact Wheel > --- UTILITY ---------- Large Storage Unit Improved Terrain Scanner > --- WEAPON ----------- Medium Laser Light Assault Rifle > --- INVENTORY -------- Light Ion Engine Light Ion Engine Light Ion Engine Heat Sink Large Storage Unit Medium Matter Pod Visual Processing Unit Transport Network Coupler Targeting Computer EM Pulse Gun [Rating: 10] Favorites ----------- Power Ion Engine Engine Ion Engine Propulsion Compact Wheel Treads Light Treads Wheel Compact Wheel Utility Improved Terrain Scanner Device Improved Terrain Scanner Storage Huge Storage Unit Weapon Medium Laser Energy Gun Medium Laser Ballistic Gun Light Assault Rifle Build | -11 -10 -10 ------- Run | Yrd Mat Sub Slots Evolved . | . . . Power . | . . . Propulsion . | . . . Utility . | . . . Weapon . | . . . Parts Attached 22 | 7 12 3 Power 3 | 1 1 1 Engine 3 | 1 1 1 Core . | . . . Reactor . | . . . Propulsion 6 | 2 3 1 Treads 1 | . . 1 Leg . | . . . Wheel 5 | 2 3 . Hover . | . . . Flight . | . . . Utility 5 | 2 3 . Device 2 | 1 1 . Storage 3 | 1 2 . Processor . | . . . Hackware . | . . . Protection . | . . . Artifact . | . . . Weapon 8 | 2 5 1 Energy Gun 6 | 1 4 1 Energy Cannon . | . . . Ballistic Gun 2 | 1 1 . Ballistic Cannon . | . . . Launcher . | . . . Special Weapon . | . . . Impact Weapon . | . . . Slashing Weapon . | . . . Piercing Weapon . | . . . Special Melee Weapon . | . . . Unidentified Prototypes . | . . . Corrupted Parts 1 | . 1 . System Corruption 1 | . 1 . Parts Lost 7 | . 4 3 Power 1 | . . 1 Propulsion 4 | . 3 1 Utility . | . . . Weapon 2 | . 1 1 Highest Loss Streak 3 | . 2 3 To Critical Strikes . | . . . Average Slot Usage (%) 91 | . 93 75 Engine 13 | . 13 7 Wheel 21 | . 23 6 Device 13 | . 13 14 Storage 14 | . 14 14 Energy Gun 16 | . 15 26 Ballistic Gun 9 | . 11 . Naked Turns . | . . . Heaviest Build 90 | 14 89 90 Greatest Support 32 | 26 32 20 Greatest Overweight (x) 5 | . 5 5 Average Overweight (x) 1 | . 1 4 Largest Inventory Capacity 25 | 8 25 25 Average Capacity 17 | 6 16 25 Most Carried 17 | 4 17 16 Average Carried 9 | 2 9 14 Final Capacity 25 | 8 25 25 Final Carried 15 | 4 15 13 Class Distribution -------------------- 100% | Mutant Dominant Class ---------------- Mutant | -10/Materials Mutant | -10/Subcaves Resources | -11 -10 -10 ----------- Run | Yrd Mat Sub Matter Collected 565 | 275 290 . Remotely . | . . . Salvage Created 570 | 102 398 70 Parts 39 | 4 27 8 Haulers Intercepted 2 | . 2 . Recyclers Shooed . | . . . Parts Field Recycled . | . . . Retrieved Matter . | . . . Parts Self-Destructed 11 | . . 11 Prevented . | . . . Kills | -11 -10 -10 ------- Run | Yrd Mat Sub Combat Hostiles Destroyed 10 | . 7 3 Guns 10 | . 7 3 Classes Destroyed 9 | 2 6 1 Worker 2 | . 2 . Tunneler 1 | 1 . . Hauler 2 | . 2 . Recycler 1 | 1 . . Operator 1 | . 1 . Turret 1 | . . 1 Watcher 1 | . 1 . Swarmer 6 | . 3 3 Grunt 4 | . 4 . Best Kill Streak 4 | 2 3 4 Combat Bots Only 3 | . 3 2 Max Kills in Single Turn 1 | 1 1 1 Gunslinging . | . . . Exploded . | . . . Melee . | . . . Uniques/NPCs Destroyed . | . . . Combat | -11 -10 -10 -------- Run | Yrd Mat Sub Hostile Shots Fired 169 | . 68 101 Missed 60 | . 19 41 Damage Taken 919 | . 488 431 Core 252 | . 100 152 Absorbed by Shields . | . . . Core Remaining (%) 100 | 100 . . Volleys Fired 81 | 5 58 18 Largest 2 | 2 2 2 Hottest 110 | 70 70 110 Shots Fired 160 | 10 115 35 Gun 160 | 10 115 35 Cannon . | . . . Launcher . | . . . Special . | . . . Kinetic 63 | 5 58 . Thermal 83 | 5 43 35 Explosive . | . . . Electromagnetic 14 | . 14 . Robot Hit Streak 5 | 5 5 4 Robot Miss Streak 6 | 1 6 4 Penetration Max . | . . . Secondary Targets 3 | . 1 2 Max Gunslinging Chain 1 | . 1 1 Shots Hit Robots 77 | 6 53 18 Core Hits 36 | 3 26 7 Critical Kills . | . . . Critical Parts Destroyed 1 | . 1 . Critical Strikes 7 | 2 4 1 Burn 6 | 2 3 1 Destroy 1 | . 1 . Melee Attacks . | . . . Impact . | . . . Slashing . | . . . Piercing . | . . . Sneak Attacks . | . . . Combat Hostiles . | . . . Follow-up Attacks . | . . . Damage Inflicted 852 | 68 575 209 Guns 852 | 68 575 209 Cannons . | . . . Explosions . | . . . Melee . | . . . Ramming . | . . . Kinetic 237 | 31 206 . Thermal 504 | 37 258 209 Explosive . | . . . Electromagnetic 111 | . 111 . Impact . | . . . Slashing . | . . . Piercing . | . . . Highest Corruption 1 | . 1 1 Average Corruption 1 | . 1 1 Corruption Purged . | . . . Corruption Blocked . | . . . Effects 2 | . 2 . Energy Discharges 1 | . 1 . Data Loss (minor) 1 | . 1 . Overload Shots . | . . . Overflow Damage . | . . . Projectiles . | . . . Explosions . | . . . Melee . | . . . Knockbacks . | . . . Impact . | . . . Kinetic . | . . . Secondary . | . . . Self-Inflicted Damage . | . . . Shots . | . . . Rammed . | . . . Targets Rammed . | . . . Kicked . | . . . Crushed . | . . . Highest Temperature 170 | 90 170 18 Average Temperature 50 | 48 53 6 Received Heat Transfer 426 | . 150 276 Siege Activations . | . . . Robots Corrupted . | . . . Combat Hostiles . | . . . Parts Fried . | . . . Impact Corruptions . | . . . Robots Melted . | . . . Combat Hostiles . | . . . Parts Melted 2 | . . 2 Heat Transferred 1854 | 259 963 632 Parts Sabotaged . | . . . Parts Stolen . | . . . Parts Stripped . | . . . Power Chain Reactions . | . . . Alert | -11 -10 -10 ------- Run | Yrd Mat Sub Peak Influence 209 | 10 209 . Initial 6 | . 6 . Average 85 | 3 95 . Maximum Alert Level 1 | . 1 . Low Security (%) 99 | 100 99 . Level 1 . | . . . Level 2 . | . . . Level 3 . | . . . Level 4 . | . . . Level 5 . | . . . High Security . | . . . Max Security . | . . . Squads Dispatched 3 | . 3 . Investigation . | . . . Extermination . | . . . Reinforcement 3 | . 3 . Assault . | . . . Garrison . | . . . Intercept . | . . . Searches Triggered . | . . . Construction Impeded . | . . . Haulers Reinforced . | . . . Active Scanning Responses . | . . . Cargo Convoy Interrupts . | . . . Stealth | -11 -10 -10 --------- Run | Yrd Mat Sub Distress Signals 2 | . 2 . Communications Jammed . | . . . Distress Signals . | . . . Times Spotted 68 | . 18 50 Peak Tracking Total 5 | . 3 5 Tactical Retreats 5 | . . 5 Traps | -11 -10 -10 ------- Run | Yrd Mat Sub Traps Triggered 3 | . 3 . Indirectly . | . . . Trap Hack Attempts . | . . . Triggered . | . . . Disarmed . | . . . Reprogrammed . | . . . Reused . | . . . Traps Extracted . | . . . Installed . | . . . Triggered . | . . . Machines | -11 -10 -10 ---------- Run | Yrd Mat Sub Machines Disabled 2 | . . 2 Max in Single Turn 1 | . . 1 Machines Repaired . | . . . Machines Dismantled . | . . . Machines Sabotaged . | . . . Overloaded Fab Kills . | . . . Hacking | -11 -10 -10 --------- Run | Yrd Mat Sub Machines Accessed 3 | . 3 . Terminals 2 | . 2 . Fabricators . | . . . Repair Stations . | . . . Recycling Units 1 | . 1 . Scanalyzers . | . . . Garrison Access . | . . . Total Hacks 6 | . 6 . Successful 1 | . 1 . Failed 5 | . 5 . Catastrophic 1 | . 1 . Database Lockouts . | . . . Manual . | . . . Terminals 4 | . 4 . Fabricators . | . . . Repair Stations . | . . . Recycling Units 2 | . 2 . Scanalyzers . | . . . Garrison Access . | . . . Terminal Hacks 1 | . 1 . Prototype ID Bank 1 | . 1 . Fabricator Hacks . | . . . Repair Station Hacks . | . . . Recycling Unit Hacks . | . . . Scanalyzer . | . . . Garrison Access Hacks . | . . . Unauthorized Hacks . | . . . Terminals . | . . . Fabricators . | . . . Repair Stations . | . . . Recycling Units . | . . . Scanalyzers . | . . . Garrison Access . | . . . Data Cores Recovered . | . . . Used . | . . . Hacking Detections 3 | . 3 . Full Trace Events . | . . . Feedback Events . | . . . Feedback Blocked . | . . . Robot Schematics Acquired . | . . . Robots Built . | . . . Authchips . | . . . Time . | . . . Total Robot Build Rating . | . . . Part Schematics Acquired . | . . . Parts Built . | . . . Authchips . | . . . Time . | . . . Total Part Build Rating . | . . . Parts Repaired . | . . . Time . | . . . Parts Recycled . | . . . Recycled Matter . | . . . Retrieved Matter . | . . . Retrieved Components . | . . . Parts Scanalyzed . | . . . Part Schematics Acquired . | . . . Parts Damaged . | . . . Bothacking | -11 -10 -10 ------------ Run | Yrd Mat Sub Used RIF Installer . | . . . Robots Hacked . | . . . Non-combat . | . . . Combat . | . . . Robot Hacks Applied . | . . . Relay Couplers Released . | . . . Fabnet Peak Effective % . | . . . Robots Rewired . | . . . Allies Hacked . | . . . Hacks Repelled . | . . . Allies | -11 -10 -10 -------- Run | Yrd Mat Sub Total Allies . | . . . Largest Group . | . . . Highest-Rated Group . | . . . Highest-Rated Ally . | . . . Total Orders . | . . . Ally Attacks . | . . . Total Damage . | . . . Kills . | . . . Allies Corrupted . | . . . Allies Melted . | . . . Intel | -11 -10 -10 ------- Run | Yrd Mat Sub Robot Analysis Total . | . . . Derelict Logs Recovered . | . . . Drone Launches . | . . . Drone Recoveries . | . . . Exploration | -11 -10 -10 ------------- Run | Yrd Mat Sub Turns Passed 796 | 70 633 93 Spaces Moved 423 | 46 366 11 Core 7 | 7 . . Treads 2 | . . 2 Legs . | . . . Wheels 414 | 39 366 9 Hover . | . . . Flight . | . . . Fastest Speed 50 | 50 90 175 Average Speed 118 | 83 119 230 Slowest Speed 480 | 90 175 480 Overloaded Moves . | . . . Propulsion Burnouts . | . . . Robots Hopped . | . . . Cave-ins Triggered . | . . . Exploration Rate (%) 24 | 4 65 3 Regions Visited 2 Branch Regions 1 Pre-discovered Areas . | . . . Known Exits Taken . | . . . Unknown Exits Taken 2 | 1 1 . Scrap Searched . | . . . Spaces Dug . | . . . Terrain Destroyed . | . . . Melee . | . . . Projectile . | . . . AOE . | . . . Terrain Rammed . | . . . Walls Destroyed . | . . . Machines Disabled . | . . . Actions | -11 -10 -10 --------- Run | Yrd Mat Sub Total 570 | 68 457 45 Wait 12 | . . 12 Move 421 | 45 365 11 Hop . | . . . Pick Up 32 | 11 20 1 Fast Attach . | . . . Attach 18 | 7 8 3 Detach . | . . . Swap 4 | . 4 . Drop 2 | . 2 . Fire 81 | 5 58 18 Melee . | . . . Ram . | . . . Kick . | . . . Crush . | . . . Escape Stasis . | . . . Rewire . | . . . Trap . | . . . Miscellaneous . | . . . Route ------- -11/Scrapyard -10/Materials (discovered 3 exits: [*Mat] / [*Min] / [*Sub]) -10/Subcaves (discovered 1 exit: [*Rec]) History --------- Turn | Location | Event 7 | -11/Scrapyard | Discovered new exit (range 15) 71 | -11/Scrapyard | Entered Materials 145 | -10/Materials | Discovered new exit (range 8) 265 | -10/Materials | Discovered new exit (range 13) 304 | -10/Materials | Build established: Mutant 694 | -10/Materials | Discovered new exit (range 7) 704 | -10/Materials | Entered Subcaves 712 | -10/Subcaves | Shifting Twisted Machinery released Flamer 712 | -10/Subcaves | Shifting Twisted Machinery released Sub. Laser 715 | -10/Subcaves | Discovered new exit (range 14) 723 | -10/Subcaves | Core integrity fell below 50% 739 | -10/Subcaves | Core integrity fell below 20% 793 | -10/Subcaves | Lost 3 parts (1p1n1w) 797 | -10/Subcaves | Destroyed by Autobeam Turret with Autobeam Last Messages --------------- 00726_ Lgt. Ion Engine fries itself beyond repair. 00730_ Autobeam Turret suffers critical hit (Burn). 00732_ Lgt. Assault Rifle fries itself beyond repair. 00732_ Flight Unit fries itself beyond repair. 00733_ S-10 Pest destroyed. 00735_ Lgt. Ion Engine destroyed. 00736_ Machine disabled. 00737_ Flight Unit fries itself beyond repair. 00739_ Autobeam melted. 00739_ Autobeam Turret destroyed. 00741_ Subatomizers dissect the Flight Unit. 00745_ Flight Unit fries itself beyond repair. 00745_ Lgt. Ion Engine fries itself beyond repair. 00749_ Com. Wheel destroyed. 00752_ S-10 Pest destroyed. 00752_ Switching to secondary target: Autobeam Turret. 00754_ Subatomizers dissect the Lgt. Assault Rifle. 00758_ Machine disabled. 00762_ Sml. Laser destroyed. 00764_ Flight Unit fries itself beyond repair. Map ----- +----------------------------------------------------+ | ?????????????????????????????????????????????????? | | ?????????????????????????????????????????????????? | | ?????????????????????????????????????????????????? | | ?????????????????????????????????????????????????? | | ?????????????????????????????????????????????????? | | ?????????????????????????????????????????????????? | | ?????????????????????????????????????????????????? | | ?????????????????????????????????????????????????? | | ????????????????????????????????#????????????????? | | ??????????????????????#??? #?????????????????????? | | ???????????????????? ????????#??????????????????? | | ????????????????????? ? ????????????????????????? | | ?????????????????????? ??????? ??????????????? | | ??????????????????????# ????????? ????????????? | | ??????????????????????? #??? ?????????????????? | | ?????????????????????#?? ?????????????????????? | | ?????????????????#?????## ????? ???????????????? | | ????????????????????????# ?????????????????????? | | ???????????????????????## ##??????????#?????????? | | ???????????????????#???#""" ##?????#??#??????????? | | ???????????????????????# """ ####??#####?????????? | | ??????????????#?????????# # ### #?????????? | | ????????????????????????# "" #??????????? | | ????????????????????????# # #??????????? | | ??????????????# #### "#### ##??#???????? | | ??????????????#""t % @ ""#"|# #???????????? | | ?????????????#< #???????????? | | ?????????????##" %% " "" ## "## #??????????? | | ?????????????## % #### ##?####?# #??????????? | | ??????????????# ????# #????????# #??#???????? | | ??????????????#""" ????? " #??????#?? ??????????? | | ??????????????####?????# #???"?????###?????????? | | ??????????????#???#????## ?????????????????????? | | ???????????????????????## ?????????????????????? | | ???????????????#????????# ??????#??????????????? | | ???????????????????????? ?????? ??????????????? | | ?????????????????????"???# ????????????????????? | | ??????????????????????????# ????????????????????? | | ?????????????????????? ? ??#?????????????????????? | | ?????????????????????????????????????????????????? | | ?????????????????????????????????????????????????? | | ?????????????????????????????????????????????????? | | ?????????????????????????????????????????????????? | | ?????????????????????????????????????????????????? | | ?????????????????????????????????????????????????? | | ?????????????????????????????????????????????????? | | ?????????????????????????????????????????????????? | | ?????????????????????????????????????????????????? | | ?????????????????????????????????????????????????? | | ?????????????????????????????????????????????????? | +----------------------------------------------------+ Best States ------------- Heat Dissipation 25 Energy Generation 10 Energy Capacity 250 Matter Stores 300 Matter Capacity 300 Sight Range 16 Terrain Scan Range 16 Terrain Scan Density 10 Evasion (%) 42 Recoil Reduction 1 Item Schematics ----------------- None Robot Schematics ------------------ None Fabricated ------------ Nothing Alien Tech Used ----------------- None Achievements -------------- None Challenges ------------ None Game ------ Seed LauncherCloakNukerbomber Manual? 0 Play Time 00:11:06 Cumulative 20.9 hours Start 2024.04.20 @ 13:32:50 End 2024.04.20 @ 13:53:06 Sessions 1 Manual Loads 0 Difficulty Rogue Special Mode None Game No. 23 Rogue 23 Adventurer 0 Explorer 0 Win Type - Total 0 Types 0/0/0/0/0/0/0/0/0 Lore% 19 Gallery% 25 Achievement% 21 Wizard Run 0 Options --------- Layout 0 ASCII 0 Keyboard 0 Movement Mouse Keybinds 0 Fullscreen 1 Font 18/SmallcapsGlow Map View 76x50 Zoom Use 0% Tactical HUD 1 Map Filters NONE Filters NONE Steam 1 RUN: 8bc18a81-1287-45e9-bccd-9a86a63b2b8b